[Event "39th Muensterland Open 2022"]
[Site "Muenster"]
[Date "2022.10.03"]
[Round "3.10"]
[White "Winterberg, Andreas"]
[Black "Garbuz, Vitaliy"]
[Result "0-1"]
[ECO "B31"]
[WhiteElo "1991"]
[BlackElo "2142"]
[Annotator "TA"]
[PlyCount "180"]
[EventDate "2022.10.01"]
[EventType "swiss"]
[EventCountry "GER"]
[SourceTitle "playchess.com"]
[Source "ChessBase"]
[SourceQuality "1"]
[TimeControl "40/5400+30:1800+30"]

{[%evp 23,180,0,27,20,22,28,28,7,21,21,21,0,0,0,52,47,51,0,0,0,0,0,12,0,0,-12,-12,-20,-20,-20,-20,-25,-30,-45,-44,-44,0,-64,-68,-92,-100,-163,-181,-270,-141,-170,-162,-206,0,0,0,0,0,0,0,0,0,0,0,0,0,0,0,0,0,0,0,-291,-289,-291,-283,-349,-271,-262,-246,-204,-72,-72,-72,-301,-194,-257,-257,-257,-257,-256,-256,-249,-249,-242,-227,-227,-220,-214,-213,-212,-212,-208,0,0,0,0,0,0,0,0,0,0,0,-344,-337,-328,-264,-264,-264,-1028,-481,-5214,-5207,-10604,-9893,-4479,-2897,-12793,-12793,-12720,-12037,-12713,-6571,-5792,-5208,-5208,-5167,-5146,-4858,-11456,-11259,-29947,-6194,-4627,-4606,-29954,0,0,0,-29938,-2920,-29959,-29961,-29962,-29968,-29970,-29944,-12846,-29954,-29947,-29951,-29989,-29990]} 1. e4 {[%emt 0:00:02]} c5 {[%emt 1:31:00]} 2. Nf3 {[%emt 0:00:06]} Nc6 {[%emt 0:01:01]} 3. Bb5 {[%emt 0:00:10]} g6 {[%emt 0:00:08]} 4. Bxc6 {[%emt 0:00:10]} dxc6 {[%emt 0:00:37]} 5. d3 {[%emt 0:00:14]} Bg7 {[%emt 1:24:08]} 6. h3 {[%emt 0:00:20]} Qc7 {[%emt 0:11:26]} 7. Nc3 {[%emt 0:03:07]} Nf6 {[%emt 0:00:57]} 8. Be3 {[%emt 0:01:19]} b6 {[%emt 0:02:05]} 9. Qd2 {[%emt 0:01:07]} e5 {[%emt 0:01:35]} 10. Bh6 {[%emt 0:02:23]} O-O {[%emt 0:03:43]} 11. O-O {[%emt 0:02:12]} Nh5 {[%emt 0:09:13]} 12. Bxg7 {[%emt 0:01:47]} Kxg7 {[%emt 0:03:27]} 13. Ne2 {[%emt 0:07:39] B31: Sicilian: 2...Nc6 3 Bb5 g6.} Kg8 {[%emt 0:12:19] [#]} 14. Nh2 $146 {[%emt 0:12:51]} ({Predecessor:} 14. a3 a5 15. b4 axb4 16. axb4 Rxa1 17. Rxa1 cxb4 18. Qxb4 Be6 19. Ra6 Rb8 20. Qa3 c5 {1-0 (74) Wang,H (2730)-Mamedov,R (2703) St Petersburg 2018}) 14... Be6 {[%emt 0:17:18]} 15. Qe3 {[%emt 0:12:53] White has an edge.} Rad8 {[%emt 0:01:08]} 16. b3 {[%emt 0:09:16]} Nf4 {[%emt 0:01:59]} 17. Nxf4 {[%emt 0:01:38]} exf4 {[%emt 0:00:09]} 18. Qf3 {[%emt 0:00:38]} f5 {[%emt 0:04:23]} (18... Rfe8 $11) 19. exf5 $14 {[%emt 0:02:42]} Rxf5 {[%emt 0:02:03]} 20. c4 {[%emt 0:03:46] Against Bd5} (20. Qe2 $14 Bd5 21. f3) 20... Rf7 {[%emt 0:02:20]} 21. Ng4 {[%emt 0:02:02]} Bxg4 {[%emt 0:00:44]} 22. hxg4 {[%emt 0:00:17]} Re8 {[%emt 0:03:48]} 23. Rfe1 {[%emt 0:01:24]} Rfe7 {[%emt 0:00:31]} 24. Rxe7 {[%emt 0:08:22]} Rxe7 $11 {[%emt 0:00:07][%mdl 4096] Endgame KQR-KQR} 25. Rd1 {[%emt 0:00:04]} Qd6 {[%emt 0:14:14]} 26. Kf1 {[%emt 0:04:08]} Qe5 {[%emt 0:00:51]} 27. Qe4 {[%emt 0:02:04]} (27. g5 {keeps more tension.} Kg7 28. Qg4 a5 29. a4) 27... Qf6 {[%emt 0:00:05]} (27... Qxe4 28. dxe4 Rxe4 29. Rd7) ({Don't play} 27... Qxe4 28. dxe4 Rxe4 29. Rd7 $14) 28. Qf3 {[%emt 0:00:24]} Qb2 $36 {[%emt 0:00:32][%mdl 2048] White is under pressure.} 29. Kg1 {[%emt 0:03:41]} Qxa2 {[%emt 0:02:50]} 30. Qxc6 {[%emt 0:01:04]} (30. d4 $11) 30... Qxb3 $15 {[%emt 0:00:23] Active counter play!} 31. Qd5+ {[%emt 0:00:33]} Kg7 {[%emt 0:00:30]} 32. Ra1 {[%emt 0:18:07]} (32. Qf3 $17) 32... Qc3 $19 {[%emt 0:01:24]} 33. Rb1 {[%emt 0:00:40]} (33. Rf1 $142) 33... Qf6 {[%emt 0:07:17]} ({Black should play} 33... Re1+ $19 34. Rxe1 Qxe1+ 35. Kh2 Qxf2) 34. Qa8 {[%emt 0:03:02]} Qe6 {[%emt 0:03:01]} 35. Ra1 {[%emt 0:01:24]} Qxg4 $2 {[%emt 0:01:48]} (35... Kh6 $19 36. g5+ Kxg5 37. Rxa7 Qe1+ 38. Kh2 Rxa7 39. Qxa7 Qxf2 40. Qe7+ Kh6) 36. Rxa7 $11 {[%emt 0:00:09]} Rxa7 {[%emt 0:00:32]} 37. Qxa7+ $19 {[%emt 0:00:05] KQ-KQ} Kh6 {[%emt 0:00:09]} 38. f3 {[%emt 0:01:14]} (38. Qxb6 {leads to mate.} f3) 38... Qe6 {[%emt 0:00:17]} 39. Qb8 {[%emt 0:00:59]} Qe1+ {[%emt 0:00:17]} 40. Kh2 {[%emt 0:00:07]} Qh4+ {[%emt 0:00:33]} 41. Kg1 {[%emt 0:30:11]} Qf6 {[%emt 0:30:34]} 42. Qc7 {[%emt 0:02:12]} g5 {[%emt 0:00:00]} 43. Kh2 {[%emt 0:00:00]} Qe6 {[%emt 0:02:21]} 44. Qb7 {[%emt 0:00:00]} Kg6 {[%emt 0:00:00]} 45. g4 $2 {[%emt 0:00:00][%mdl 8192]} (45. Qb8 $11 {and White stays safe.}) 45... fxg3+ $1 {[%emt 0:00:00]} 46. Kxg3 {[%emt 0:00:00]} h5 $1 {[%emt 0:00:00]} 47. Qb8 {[%emt 0:00:00]} Qe1+ {[%emt 0:00:00]} 48. Kg2 {[%emt 0:00:00]} Qe2+ {[%emt 0:00:00]} 49. Kg1 {[%emt 0:00:00]} Qe6 {[%emt 0:05:21] Against Qg8+} ({Weaker is} 49... Qxf3 50. Qxb6+ Kf5 51. Qxc5+ Kg4 52. Qf2 Qxd3 53. Qg2+ Kf5 54. Qf2+ Kg6 55. Qb6+ Kh7 56. Qc7+ Kh6 57. Qb6+ Kg7 58. Qb2+ Kg6 59. Qb6+ Kf7 60. Qf2+ Kg6 61. Qb6+ $17) (49... g4 $1 $19 {is more deadly. ...Kf5 is the strong threat.} 50. fxg4 Qxg4+ 51. Kh2 Qh4+ 52. Kg2 Qg5+ 53. Kh3 Kf5) 50. Kf2 $17 {[%emt 0:00:00]} h4 {[%emt 0:00:00][%cal Bh5h4,Bh4h3][%mdl 32] White must now prevent ...g4.} 51. Qc7 $2 {[%emt 0:00:09]} (51. Qh8 $17 {was worth a try.}) 51... Qf6 {[%emt 0:00:00] Hoping for ...g4.} 52. Kg2 {[%emt 0:01:27]} (52. Qb8 $142) 52... h3+ $19 {[%emt 0:03:26]} 53. Kg3 {[%emt 0:00:42]} Qf4+ $1 {[%emt 0:02:36]} 54. Qxf4 {[%emt 0:00:07]} gxf4+ {[%emt 0:00:04]} 55. Kxh3 {[%emt 0:02:57] [#] K3P-K3P} Kf5 {[%emt 0:00:04]} 56. Kh4 {[%emt 0:00:35]} Ke5 {[%emt 0:00:04]} 57. Kg5 {[%emt 0:00:36]} Kd4 {[%emt 0:00:05]} 58. Kxf4 {[%emt 0:00:11]} Kxd3 {[%emt 0:03:32]} 59. Ke5 {[%emt 0:14:35]} Kxc4 {[%emt 0:00:00] KPP-KP} 60. f4 {[%emt 0:00:16] [#] Threatening mate with f5.} b5 $2 {[%emt 0:00:00]} (60... Kb3 $1 $19 {( -> ...c4)} 61. f5 c4) 61. f5 $11 {[%emt 0:00:28] Intending f6 and mate.} b4 {[%emt 0:00:00] And now ...b3 would win.} 62. f6 {[%emt 0:00:08]} b3 {[%emt 0:00:00] aiming for ...b2.} 63. f7 {[%emt 0:00:08]} b2 {[%emt 0:00:00]} 64. f8=Q {[%emt 0:00:11] White threatens Qb8 and mate.} b1=Q {[%emt 0:00:00] Prevents Qb8. KQ-KQ} 65. Qf7+ {[%emt 0:04:42]} Kc3 {[%emt 0:00:00] Threatens to win with ...Qb8+.} 66. Qd5 $2 {[%emt 0:01:42][%mdl 8192]} (66. Qf2 $1 $11) 66... Qb8+ $19 {[%emt 0:01:19]} 67. Kf5 {[%emt 0:02:31]} Qf8+ {[%emt 0:00:24]} 68. Ke4 {[%emt 0:00:22]} Qe7+ {[%emt 0:00:25]} 69. Kf3 $2 {[%emt 0:01:03]} (69. Kf5) 69... Qf6+ {[%emt 0:00:21]} (69... c4 $142 70. Qc6 Qh7) 70. Ke2 {[%emt 0:00:12]} (70. Kg3 $142 c4 71. Qc5) 70... Qd4 {[%emt 0:00:48]} 71. Qf3+ {[%emt 0:00:49]} Kc2 {[%emt 0:01:08]} 72. Qf5+ {[%emt 0:00:16]} Kb2 {[%emt 0:00:06]} 73. Qc8 {[%emt 0:00:50]} c4 {[%emt 0:00:36]} 74. Qb7+ {[%emt 0:00:49]} Kc2 {[%emt 0:00:05]} 75. Qa6 {[%emt 0:01:10]} Qd3+ {[%emt 0:01:14]} 76. Ke1 {[%emt 0:00:17]} Qd1+ {[%emt 0:00:58]} 77. Kf2 {[%emt 0:00:08]} Qd2+ {[%emt 0:02:06]} 78. Kf3 {[%emt 0:00:44]} Qd3+ {[%emt 0:00:58]} 79. Kf2 {[%emt 0:00:13]} Qb3 {[%emt 0:00:16]} 80. Ke2 {[%emt 0:00:48]} Kb2 {[%emt 0:00:19]} (80... Kb1 $142 81. Qe6 Qb2+ 82. Kf3 c3 83. Qe4+ c2 84. Ke2 Qc3 85. Kf2 Kb2 86. Qb7+ Qb3 87. Qg7+ Ka2 88. Qg5 Qb6+ 89. Ke2 Kb1 90. Qf5 Qc6 91. Kf2 Ka2 92. Qf7+ Kb2 93. Qg7+ Kb1 94. Qh7 Qd5 95. Kg3 Kb2 96. Qg7+ Kb3 97. Qc7 Kb2 98. Qg7+ Kb3 99. Qh6 Qe5+ 100. Kg2 Qe2+ 101. Kg3 Qe5+ 102. Kg2 Qe2+ 103. Kh3 Qf1+ 104. Kg4 Qg1+ 105. Kf5 Qc5+ 106. Kg4 c1=Q 107. Qxc1 Qxc1 108. Kf5 Qh6 109. Ke4 Qg5 110. Kf3 Kb4 111. Ke2 Qf5 112. Kd2 Qe4 113. Kc1 Kc3 114. Kd1 Qe8 115. Kc1 Qe1#) 81. Qf6+ {[%emt 0:00:40]} c3 {[%emt 0:02:24]} 82. Qd4 {[%emt 0:00:25]} Ka1 {[%emt 0:01:31]} 83. Kd3 {[%emt 0:00:31]} Kb2 {[%emt 0:00:57]} 84. Ke2 $1 {[%emt 0:00:42] Inhibits Qd1+.} Qc2+ {[%emt 0:00:29]} (84... Ka2 $142 85. Qa7+ Qa3 86. Qf7+ Kb1 87. Qh5 c2 88. Qh7 Qb4 89. Qf5 Qc4+ 90. Kf2 Qc6 91. Qh7 Qd5 92. Kg3 Kb2 93. Qg7+ Kb3 94. Qh6 Qe5+ 95. Kf3 Qc3+ 96. Ke4 c1=Q 97. Qe6+ Qc4+ 98. Qxc4+ Kxc4 99. Kf3 Kd4 100. Kg3 Qg5+ 101. Kf3 Kd3 102. Kf2 Qg4 103. Kf1 Ke3 104. Ke1 Qg1#) 85. Ke1 {[%emt 0:00:13]} Kc1 {[%emt 0:00:25]} 86. Qb4 {[%emt 0:02:18]} Qb2 {[%emt 0:00:05]} 87. Qc5 {[%emt 0:00:21]} Qd2+ {[%emt 0:00:20]} (87... c2 $142 88. Qe3+ Kb1 89. Qe4 Qc3+ 90. Kf2 Kb2 91. Qb7+ Qb3 92. Qg7+ Ka2 93. Qg5 Qb6+ 94. Ke2 Kb1 95. Qf5 Qc6 96. Kd2 Qh6+ 97. Ke1 Qc6 98. Kd2 Qg2+ 99. Ke1 Qh1+ 100. Kd2 Qg2+ 101. Ke1 Qh1+ 102. Ke2 Qc6 103. Kf2 Kb2 104. Qe5+ Ka2 105. Qe2 Qc5+ 106. Kg3 Kb3 107. Qe6+ Kb4 108. Qe4+ Qc4 109. Qe7+ Kb3 110. Qb7+ Kc3 111. Qh1 Kb2 112. Qh8+ Qc3+ 113. Qxc3+ Kxc3 114. Kh4 c1=Q 115. Kg4 Kd4 116. Kf5 Qh6 117. Kg4 Qf6 118. Kh5 Qg7 119. Kh4 Ke3 120. Kh3 Kf3 121. Kh4 Qh6#) 88. Kf1 {[%emt 0:00:06]} Qd3+ {[%emt 0:00:55]} 89. Ke1 {[%emt 0:00:50]} c2 {[%emt 0:00:52]} 90. Qb4 {[%emt 0:02:11]} Qd1+ {[%emt 0:00:10] Weighted Error Value: White=0.36/Black=0.26 (precise)} 0-1

[Event "39th Muensterland Open 2022"]
[Site "Muenster"]
[Date "2022.10.03"]
[Round "4.1"]
[White "Garbuz, Vitaliy"]
[Black "Koellner, Ruben Gideon"]
[Result "0-1"]
[ECO "C41"]
[WhiteElo "2142"]
[BlackElo "2401"]
[Annotator "TA"]
[PlyCount "76"]
[EventDate "2022.10.01"]
[EventType "swiss"]
[EventCountry "GER"]
[SourceTitle "playchess.com"]
[Source "ChessBase"]
[SourceQuality "1"]
[TimeControl "40/5400+30:1800+30"]

{[%evp 13,76,36,39,41,41,38,52,41,87,76,72,80,70,49,58,52,91,31,33,29,39,-56,-52,-119,-134,-235,-195,-228,-200,-245,-255,-230,-208,-253,-183,-202,-130,-131,-133,-126,-127,-127,-120,-126,-126,-132,0,0,0,0,170,156,129,131,105,-101,-149,-29993,-29994,-29994,-29995,-29995,-29996,-29996,-761]} 1. e4 {[%emt 0:00:04]} d6 {[%emt 0:00:05]} 2. d4 {[%emt 0:00:07]} Nf6 {[%emt 0:00:06]} 3. Nc3 {[%emt 0:00:06]} e5 {[%emt 0:00:33]} 4. Nf3 {[%emt 0:00:45]} Nbd7 {[%emt 0:00:08]} 5. Bc4 {[%emt 0:00:07]} Be7 {[%emt 0:00:04]} 6. O-O {[%emt 0:00:07]} c6 {[%emt 0:00:13]} 7. a4 {[%emt 0:00:22][%cal Ba2a4,Ba4a5][%mdl 32]} h6 $1 {[%emt 0:00:47][%mdl 4] outshines the older 7...0-0.} 8. Re1 {[%emt 0:00:29] C41: Philidor Defence.} Qc7 {[%emt 0:01:07]} 9. a5 {[%emt 0:00:21]} Nf8 {[%emt 0:01:33]} 10. h3 {[%emt 0:00:12] White is slightly better.} g5 {[%emt 0:00:11]} (10... Ng6 $14) 11. Nh2 {[%emt 0:01:05]} Ng6 {[%emt 0:00:10]} 12. Be3 {[%emt 0:01:01]} Rg8 {[%emt 0:03:33] [#]} 13. Kh1 $146 {[%emt 0:31:20]} ({Predecessor:} 13. Ng4 Bxg4 14. hxg4 Qc8 15. f3 h5 16. gxh5 Nxh5 17. g4 Nhf4 18. Kf2 Rh8 19. Rh1 {½-½ (37) Torrecillas Martinez,A (2387)-Canal Oliveras,J (2232) Barcelona 2015}) 13... Bd7 {[%emt 0:02:59]} 14. Qd3 {[%emt 0:06:59]} Nh5 {[%emt 0:18:18]} 15. Ng4 {[%emt 0:09:40]} (15. Ne2 $16) 15... Bxg4 {[%emt 0:02:06]} 16. hxg4 {[%emt 0:00:08]} Nf6 {[%emt 0:00:15]} 17. f3 {[%emt 0:03:21]} (17. d5 $14) 17... h5 $15 {[%emt 0:03:30]} 18. Bxg5 {[%emt 0:06:00]} (18. gxh5 $15 Nxh5 19. Bb3) 18... hxg4 $17 {[%emt 0:00:18]} 19. Ne2 {[%emt 0:03:55] [#]} (19. Bb3 $17) 19... Nxe4 $1 $19 {[%emt 0:11:23][%mdl 512]} 20. fxe4 {[%emt 0:05:39] Strongly threatening Bxe7.} Bxg5 {[%emt 0:00:42]} 21. Rf1 {[%emt 0:02:22]} Rh8+ {[%emt 0:00:16]} 22. Kg1 {[%emt 0:00:07]} f6 {[%emt 0:00:31]} ({Weaker is} 22... d5 23. exd5 exd4 24. d6 Qxd6 25. Bxf7+ Kd8 26. Nxd4 (26. Qxd4 $2 Qxd4+ 27. Nxd4 Be3+ 28. Rf2 g3 $19) 26... Qh2+ 27. Kf2 $11) 23. Be6 {[%emt 0:01:55]} Qh7 {[%emt 0:24:12] Hoping for ...Qh2+.} 24. Qg3 {[%emt 0:09:22] Against Qh2+} Nf4 {[%emt 0:10:04]} 25. Nxf4 {[%emt 0:06:17]} Bxf4 {[%emt 0:00:17]} 26. Rxf4 {[%emt 0:00:07]} exf4 {[%emt 0:00:06]} 27. Qxf4 {[%emt 0:02:21]} Ke7 {[%emt 0:12:11]} 28. Bxg4 {[%emt 0:01:12]} Rag8 {[%emt 0:01:35] Dancing on a razor blade.} 29. Qf5 {[%emt 0:04:36]} Qh1+ {[%emt 0:00:22]} ({Black should play} 29... Qxf5 $1 $17 30. Bxf5 Rg3) 30. Kf2 $11 {[%emt 0:00:04] White threatens Qe6+ and mate.} Qh4+ $1 {[%emt 0:02:09]} (30... Qxa1 $2 31. Qe6+ Kf8 32. Qxf6+ Ke8 33. Qe6+ Kf8 34. Qxd6+ Kf7 35. Be6+ Kg6 36. Bxg8+ Kg7 37. Qg3+ Kf8 38. Be6 $18) 31. Kf3 {[%emt 0:00:10] And now Qe6+ would win.} Rh6 $2 {[%emt 0:04:25]} (31... Rd8 $11 {and Black is okay.}) 32. Qe6+ {[%emt 0:04:57]} Kf8 {[%emt 0:00:05][%cal Of6f5,Be7f8,Bf8g7,Bg7h8][%mdl 32] ...f5! is the strong threat.} 33. Qxd6+ {[%emt 0:00:17]} Kg7 {[%emt 0:00:28][%cal Oh4g4] [#]} 34. Qe7+ $2 {[%emt 0:00:06]} ({But not} 34. g3 $2 {[#]} Qxg4+ $3 {[%mdl 512]} 35. Kxg4 f5+ 36. exf5 Rxd6 $19) (34. Be6 $1 $16 {stays on course. Black must now prevent a6.} Qh5+ 35. Ke3 Qg5+ 36. Kd3 Qxg2 37. Kc3) 34... Kh8 $17 {[%emt 0:00:29]} 35. Bf5 {[%emt 0:01:46][%mdl 8192] Now White is beyond hope.} (35. Bh3 $17) 35... Qg3+ {[%emt 0:00:57][%mdl 64] Deflection, Double Attack. Black mates.} 36. Ke2 {[%emt 0:00:03]} Qxg2+ {[%emt 0:00:04]} 37. Kd3 {[%emt 0:00:06]} Rg3+ {[%emt 0:00:14]} 38. Kc4 {[%emt 0:00:07]} Qxc2+ {[%emt 0:00:05] Weighted Error Value: White=0.48/Black=0.25 (precise)} 0-1

[Event "39th Muensterland Open 2022"]
[Site "Muenster"]
[Date "2022.10.03"]
[Round "4.2"]
[White "Pfreundt, Jakob"]
[Black "Torres-Kuckel, Rafael"]
[Result "1-0"]
[ECO "A57"]
[WhiteElo "2401"]
[BlackElo "2096"]
[Annotator "TA"]
[PlyCount "89"]
[EventDate "2022.10.01"]
[EventType "swiss"]
[EventCountry "GER"]
[SourceTitle "playchess.com"]
[Source "ChessBase"]
[SourceQuality "1"]
[TimeControl "40/5400+30:1800+30"]

{[%evp 22,89,88,76,133,132,122,131,147,147,147,143,143,122,134,124,146,94,142,115,102,95,138,100,127,135,141,40,23,25,34,0,131,151,160,144,144,143,243,202,340,141,166,97,76,0,0,0,0,0,0,-4,8,0,668,660,657,516,516,335,298,296,274,281,750,712,29984,5673,29985,29986]} 1. c4 {[%emt 0:08:34]} Nf6 {[%emt 0:00:50]} 2. Nc3 {[%emt 0:00:34]} g6 {[%emt 0:00:37]} 3. d4 {[%emt 0:04:23]} Bg7 {[%emt 0:01:19]} 4. e4 {[%emt 0:00:12]} d6 {[%emt 0:00:16]} 5. Be2 {[%emt 0:00:27]} c5 {[%emt 0:03:47]} 6. d5 {[%emt 0:02:14]} b5 {[%emt 0:01:08]} 7. cxb5 {[%emt 0:00:54]} a6 {[%emt 0:00:22]} 8. Nf3 {[%emt 0:02:22]} O-O {[%emt 0:02:09]} 9. a4 {[%emt 0:03:51]} Nbd7 {[%emt 0:02:57]} 10. O-O {[%emt 0:00:57]} axb5 {[%emt 0:00:13]} 11. Bxb5 {[%emt 0:00:10]} Ba6 {[%emt 0:00:16]} 12. Bf4 {[%emt 0:10:09]} Ne8 {[%emt 0:07:31] [#] A57: Benko/Volga Gambit.} (12... Bxb5 $142 13. axb5 Rxa1 14. Qxa1 Qc7) 13. Qd2 $1 $16 {[%emt 0:05:02]} Nc7 {[%emt 0:08:12]} 14. Bh6 {[%emt 0:00:54]} Rb8 {[%emt 0:01:58][%cal Rc7b5] White is clearly better.} 15. Bxg7 {[%emt 0:01:06]} Kxg7 {[%emt 0:00:06] [#]} 16. Bxa6 $146 {[%emt 0:12:22] White is much more active.} ({Predecessor:} 16. Qe2 Bxb5 17. axb5 f6 18. Nd2 Rb7 19. Nc4 Nxb5 20. Nxb5 Rxb5 21. Nxd6 Rb4 22. Nc4 {½-½ (52) Nigametzianov,M (2400)-Konev,K (2266) Kemerovo 2008}) 16... Nxa6 {[%emt 0:03:23]} 17. Nb5 {[%emt 0:00:04]} Qb6 {[%emt 0:10:24]} 18. Rfb1 {[%emt 0:00:32]} Rfc8 {[%emt 0:06:03]} 19. h4 {[%emt 0:00:42]} (19. b3 $142) 19... Nf6 {[%emt 0:02:38]} ({Black should play} 19... Nc7) 20. e5 {[%emt 0:02:25]} dxe5 {[%emt 0:00:33]} 21. Nxe5 {[%emt 0:00:09]} Nb4 {[%emt 0:00:59]} 22. Nc4 {[%emt 0:02:12]} Qa6 {[%emt 0:06:30]} 23. d6 {[%emt 0:01:11]} Rd8 {[%emt 0:04:26]} 24. Rd1 {[%emt 0:05:55]} (24. b3 $16) 24... exd6 $1 $14 {[%emt 0:06:03]} 25. Ncxd6 {[%emt 0:03:53]} Nbd5 $1 {[%emt 0:04:19]} 26. Nc4 {[%emt 0:08:43]} (26. h5 $5 {[%cal Rh5h6]}) 26... Qe6 {[%emt 0:16:32]} (26... Ne3 $11 27. Qxe3 Rxd1+ 28. Rxd1 Qxa4) 27. b3 {[%emt 0:06:05]} h6 {[%emt 0:01:53]} 28. Qe1 {[%emt 0:03:33]} Qg4 {[%emt 0:01:10]} 29. f3 {[%emt 0:00:15]} Qh5 {[%emt 0:02:17]} (29... Qf4 $16 30. Qf2 Rd7) 30. Qg3 {[%emt 0:02:59]} Ne7 {[%emt 0:02:04]} (30... Qf5 $142 31. Rd2 Nh5) 31. Ncd6 {[%emt 0:03:02]} (31. Rxd8 $18 {is more deadly.} Rxd8 32. a5) 31... Nf5 $16 {[%emt 0:00:48]} 32. Nxf5+ {[%emt 0:00:37]} (32. Qh2 $18) 32... Qxf5 {[%emt 0:00:00]} 33. Nd6 {[%emt 0:03:49]} (33. Qe1 $16) 33... Qe6 $11 {[%emt 0:00:20]} 34. Rd3 {[%emt 0:05:16] Re1 is the strong threat.} Nh5 {[%emt 0:02:01]} 35. Qh2 {[%emt 0:00:02]} Kh7 {[%emt 0:00:30] [#] White must now prevent ...Rb4.} 36. g4 $132 {[%emt 0:01:07][%mdl 2048] White puts up resistance} Qf6 {[%emt 0:01:23]} 37. Rad1 {[%emt 0:00:29]} Ng7 {[%emt 0:01:27][%mdl 8192]} (37... c4 $11 38. bxc4 (38. Nxc4 Rxd3 39. Rxd3 Nf4 $11) 38... Rb2) 38. Ne4 $18 {[%emt 0:00:34][%csl LRc5,LRf6]} Qb6 {[%emt 0:01:16]} 39. Rxd8 {[%emt 0:00:32]} Rxd8 {[%emt 0:00:06]} 40. Rxd8 {[%emt 0:00:06][%cal Oh2c7] Threatening mate with Qc7!} c4+ {[%emt 0:01:10]} 41. Kg2 {[%emt 0:04:08][%cal Oh2c7] Qc7! would kill now.} Qxd8 {[%emt 0:00:12]} 42. bxc4 {[%emt 0:00:11]} f5 $2 {[%emt 0:09:07]} (42... Ne6 43. Qd6 Qa5) 43. Qd6 {[%emt 0:00:59]} Qa8 {[%emt 0:00:40]} 44. Nf6+ {[%emt 0:00:31]} Kh8 {[%emt 0:00:05]} 45. g5 {[%emt 0:04:04] Weighted Error Value: White=0.39/Black=0.52} 1-0

[Event "39th Muensterland Open 2022"]
[Site "Muenster"]
[Date "2022.10.03"]
[Round "4.3"]
[White "Schliebener, Stephan"]
[Black "Scholz, Christian"]
[Result "0-1"]
[ECO "E61"]
[WhiteElo "2119"]
[BlackElo "2338"]
[Annotator "TA"]
[PlyCount "62"]
[EventDate "2022.10.01"]
[EventType "swiss"]
[EventCountry "GER"]
[SourceTitle "playchess.com"]
[Source "ChessBase"]
[SourceQuality "1"]
[TimeControl "40/5400+30:1800+30"]

{[%evp 11,62,3,20,-16,17,20,54,53,66,71,72,35,78,57,43,43,70,66,63,60,57,62,53,53,56,0,0,0,0,-94,0,0,-3,-44,-50,-53,-43,-213,-200,-357,-334,-345,-330,-395,-402,-361,-308,-287,-299,-258,-237,-232,-228]} 1. c4 {[%emt 0:00:03]} Nf6 {[%emt 0:00:05]} 2. Nf3 {[%emt 0:00:16]} g6 {[%emt 0:00:09]} 3. Nc3 {[%emt 0:00:05]} Bg7 {[%emt 0:00:05]} 4. d4 {[%emt 0:00:08][%cal Bd2d4,Bd4d5][%mdl 32]} d6 {[%emt 0:00:06]} 5. Bf4 {[%emt 0:01:44]} O-O {[%emt 0:02:16]} 6. e3 {[%emt 0:01:02]} c5 {[%emt 0:03:35]} 7. d5 {[%emt 0:00:55] E61: King's Indian: Early deviations for White, including Smyslov System.} a6 {[%emt 0:11:53][%cal Ob7b5]} 8. a4 {[%emt 0:01:44]} Qa5 {[%emt 0:01:38]} 9. Nd2 {[%emt 0:00:51] Against Ne4. White is slightly better.} Re8 {[%emt 0:07:34]} 10. Be2 {[%emt 0:02:16] Prevents Nh5.} e5 {[%emt 0:02:48]} 11. dxe6 {[%emt 0:00:26] [#]} Rxe6 $146 {[%emt 0:02:02]} ({Predecessor:} 11... Bxe6 12. O-O Rd8 13. Bf3 Nc6 14. Nd5 Bxd5 15. cxd5 Ne5 16. Bxe5 dxe5 17. e4 Qb4 {½-½ (71) Ioffe,A-Hlusevich,S Yerevan 1983}) 12. O-O {[%emt 0:03:56]} Nc6 {[%emt 0:10:19]} 13. Nb3 {[%emt 0:05:26][%csl LRa5,LRd6]} Qd8 {[%emt 0:00:09]} 14. Qd2 {[%emt 0:00:59]} Qb6 {[%emt 0:16:25]} 15. Ra3 {[%emt 0:06:58] Black must now prevent a5.} Nb4 {[%emt 0:00:46]} 16. a5 {[%emt 0:01:50]} Qc7 {[%emt 0:00:19]} 17. Rd1 {[%emt 0:00:53][%cal Rf4d6]} Bf8 {[%emt 0:01:38]} 18. Na4 {[%emt 0:12:12]} (18. Bg5 $14) 18... Ne4 $11 {[%emt 0:01:27]} 19. Qc1 {[%emt 0:00:09]} g5 $1 $36 {[%emt 0:08:53][%mdl 2048] White is under pressure.} 20. Nb6 {[%emt 0:03:14] [#]} (20. Bg3 $11) 20... Rb8 {[%emt 0:00:32]} (20... gxf4 $1 $17 21. Nxa8 Qe7) 21. Bg3 {[%emt 0:00:29]} f5 {[%emt 0:01:04][%cal Of5f4] White should prevent ...f4!} 22. f3 {[%emt 0:15:30]} (22. Bf3 $5 {[%cal Rf3e4]}) 22... Nxg3 {[%emt 0:00:18]} 23. hxg3 {[%emt 0:00:07]} Qe7 {[%emt 0:03:18]} 24. Kf2 $2 {[%emt 0:03:24] [#] White does not recover from this.} (24. Bd3 $15 Qf7 25. Bb1) 24... f4 $1 $19 {[%emt 0:00:08]} 25. e4 {[%emt 0:01:45]} (25. Na1 {was called for.}) 25... fxg3+ {[%emt 0:00:15]} 26. Kxg3 {[%emt 0:00:10]} g4 {[%emt 0:03:42] ...Bh6 is the strong threat.} ({And not} 26... Rh6 27. Nd5 (27. Kf2 $2 g4 $19) 27... Nxd5 28. Rxd5 $19) 27. Rh1 {[%emt 0:02:53] Inhibits Bh6.} gxf3 {[%emt 0:03:14]} 28. gxf3 {[%emt 0:00:18]} Rg6+ {[%emt 0:00:09]} ({Avoid the trap} 28... Qf6 $2 29. Nd5 Qe5+ 30. Kf2 $19) 29. Kf2 {[%emt 0:00:15]} Qe5 {[%emt 0:00:23] Hoping for ...Qg3+. Chess con chili.} 30. Ke1 {[%emt 0:04:53]} Qg3+ {[%emt 0:09:25]} 31. Kd1 {[%emt 0:00:26] [#]} Qg1+ $3 {[%emt 0:00:16][%mdl 512] Weighted Error Value: White=0.39/Black=0.11 (very precise)} 0-1